bitfinex/quotes_SOLUSD_20260115
["timestamp","ask_amount","ask_price","bid_price","bid_amount"]
[1768507373981,1.34445938,141.74,141.67,7.55781279]
[1768507374202,1.34445938,141.74,141.69,6.8374707]
[1768507375616,1.34445938,141.72,141.69,6.8374707]
[1768507378702,8.40083266,141.72,141.69,6.8374707]
[1768507379286,8.40083266,141.72,141.67,8.25208742]
[1768507379613,1.34445938,141.71,141.68,6.8374707]
[1768507381383,1.34445938,141.71,141.68,2.67649822]
[1768507382420,1.34445938,141.7,141.67,0.69429044]
[1768507383704,8.40178509,141.7,141.67,0.69429044]
[1768507384013,1.34445938,141.69,141.67,0.69429044]
[1768507384401,1.34445938,141.69,141.67,1e-08]
[1768507384793,1.34445938,141.68,141.66,5.55432354]
[1768507384994,1.34445938,141.68,141.63,3.18090311]
[1768507385207,1.34445938,141.66,141.62,2.71649826]
[1768507385512,8.40451465,141.65,141.62,0.04000004]
[1768507385989,1.34445938,141.63,141.59,6.83476136]
[1768507387317,1.34445938,141.62,141.57,6.83476136]
[1768507387617,7.06065099,141.63,141.61,1.37778934]
[1768507387791,1.34445938,141.67,141.63,1.37778934]
[1768507388197,1.34445938,141.66,141.62,6.83476136]
[1768507388598,31.54180639,141.66,141.61,8.2125507]
[1768507388798,1.34445938,141.64,141.6,6.83476136]
[1768507388999,1.34445938,141.64,141.6,8.2125507]
[1768507390117,8.40502293,141.64,141.6,8.2125507]
[1768507390332,7.05815923,141.68,141.64,1.37778934]
[1768507390518,8.40261861,141.68,141.64,8.2125507]
[1768507390899,8.40261861,141.68,141.64,1.37778934]
[1768507391102,26.04801669,141.68,141.64,8.2125507]
[1768507391916,26.04801669,141.68,141.65,6.83476136]
[1768507392133,26.04801669,141.68,141.64,8.2125507]
[1768507392496,1.34445938,141.67,141.63,6.83476136]
[1768507394190,8.4036151,141.66,141.62,8.2125507]
[1768507394919,1.34445938,141.65,141.62,6.83476136]
[1768507395223,1.28445937,141.65,141.62,6.83476136]
[1768507395396,7.05915572,141.66,141.62,8.2125507]
[1768507396005,24.70704503,141.66,141.61,6.83476136]
[1768507396206,24.70704503,141.66,141.6,8.2125507]
[1768507396207,31.54180639,141.66,141.6,8.2125507]
[1768507396496,6.83476136,141.65,141.6,6.83476136]
[1768507397101,1.34445938,141.64,141.6,8.2125507]
[1768507397520,1.34445938,141.64,141.6,6.83476136]
[1768507398419,1.34445938,141.62,141.59,6.83476136]
[1768507398593,1.34445938,141.62,141.58,6.83476136]
[1768507399104,1.34445938,141.62,141.58,8.2125507]
[1768507399901,1.34445938,141.62,141.58,6.83476136]
[1768507400418,8.40610756,141.61,141.58,6.83476136]
[1768507400719,8.40610756,141.61,141.57,1.37778934]
[1768507400927,1.29610051,141.6,141.57,6.83476136]
[1768507401220,1.29610051,141.6,141.56,8.2580406]
[1768507401609,1.29610051,141.6,141.54,8.48825368]
[1768507401816,1.29610051,141.6,141.55,8.2580406]
[1768507401817,1.29610051,141.59,141.55,8.2580406]
[1768507402013,1.29610051,141.59,141.55,1.42327924]
[1768507402223,1.29610051,141.59,141.55,8.2580406]
[1768507402422,7.06264566,141.59,141.56,1.42327924]
[1768507402828,8.35874617,141.59,141.55,6.83476136]
[1768507403222,8.35874617,141.59,141.55,8.2580406]
[1768507403726,1.29610051,141.58,141.55,6.83476136]
[1768507405827,1.29610051,141.58,141.56,6.83476136]
[1768507406129,7.06264566,141.59,141.57,6.83476136]
[1768507406721,7.06264566,141.59,141.56,1.41124343]
[1768507406920,8.41042758,141.59,141.56,6.83476136]
[1768507407136,1.34778192,141.58,141.53,8.24600479]
[1768507407316,1.34778192,141.57,141.53,8.24600479]
[1768507407845,8.41143877,141.57,141.54,8.24600479]
[1768507408141,8.41143877,141.57,141.54,6.83476136]
[1768507408306,1.34778192,141.57,141.54,6.83476136]
[1768507408641,7.06277883,141.59,141.56,6.83476136]
[1768507408822,1.34778192,141.6,141.57,1.41124343]
[1768507408823,7.06233899,141.6,141.57,1.41124343]
[1768507409224,7.06233899,141.6,141.57,8.24600479]
[1768507409550,7.06233899,141.6,141.57,12.52325461]
[1768507409749,1.34778192,141.6,141.57,12.52325461]
[1768507410450,8.4094301,141.61,141.57,12.52325461]
[1768507410750,1.34778192,141.6,141.57,12.52325461]
[1768507411249,7.06164818,141.61,141.57,12.52325461]
[1768507411430,8.41012168,141.6,141.57,11.11201118]
[1768507411948,19.00117143,141.62,141.58,1.41124343]
[1768507412152,7.06175474,141.61,141.59,1.41124343]
[1768507412448,8.40953666,141.61,141.56,1.41124343]
[1768507412628,1.34778192,141.6,141.56,11.11201118]
[1768507412824,1.34778192,141.58,141.54,12.52325461]
[1768507413630,8.41127085,141.58,141.54,12.52325461]
[1768507413830,8.41127085,141.58,141.54,19.58837461]
[1768507414449,8.41127085,141.58,141.54,12.52325461]
[1768507414639,1.34778192,141.57,141.53,12.52325461]
[1768507414956,1.34778192,141.57,141.53,19.58885903]
[1768507415256,1.34778192,141.57,141.54,12.52325461]
[1768507415750,1.34778192,141.56,141.53,11.11201118]
[1768507415937,7.06405879,141.57,141.54,11.11201118]
[1768507416141,7.06405879,141.57,141.55,1.41124343]
[1768507416340,8.41115572,141.58,141.55,1.41124343]
[1768507416847,7.0633738,141.58,141.55,12.52325461]
[1768507417064,8.41115572,141.58,141.55,12.52325461]
[1768507417242,8.41115572,141.58,141.55,11.11201118]
[1768507417554,8.41115572,141.58,141.54,19.58827607]
[1768507418046,8.41115572,141.58,141.54,12.52325461]
[1768507418256,19.5231669,141.58,141.54,1.41124343]
[1768507418429,8.41115572,141.58,141.54,12.52325461]
[1768507421151,1.34778192,141.56,141.52,8.47727194]
[1768507421358,1.34778192,141.56,141.52,19.58928312]
[1768507421852,1.34778192,141.55,141.51,19.58983331]
[1768507422230,1.34778192,141.55,141.52,1.41124343]
[1768507422629,1.34778192,141.55,141.52,12.52325461]
[1768507423124,8.41192433,141.56,141.52,12.52325461]
[1768507424054,1.34778192,141.55,141.52,12.52325461]
[1768507424255,1.23777635,141.55,141.52,12.52325461]
[1768507424949,1.17777634,141.55,141.52,12.52325461]
[1768507425751,7.06414241,141.56,141.52,12.52325461]
[1768507426254,7.06414241,141.56,141.52,1.41124343]
[1768507426452,7.06414241,141.56,141.51,11.11201118]
[1768507426453,35.83650962,141.56,141.51,11.11201118]
[1768507426657,24.72449844,141.56,141.49,1.61124343]
[1768507426847,1.34778192,141.53,141.49,12.72325461]
[1768507427159,1.34778192,141.53,141.5,11.11201118]
[1768507427338,1.34778192,141.53,141.5,12.52325461]
[1768507427876,1.34778192,141.53,141.5,1.41124343]
[1768507428059,1.34778192,141.53,141.5,11.11201118]
[1768507428267,1.34778192,141.53,141.49,12.72325461]
[1768507428561,8.41385912,141.53,141.49,12.72325461]
[1768507428736,8.41385912,141.53,141.49,19.79076941]
[1768507429259,7.0660772,141.53,141.5,12.52325461]
[1768507429462,8.41385912,141.53,141.5,12.52325461]
[1768507429756,8.41385912,141.53,141.5,1.41124343]
[1768507430156,8.41385912,141.53,141.5,12.52325461]
[1768507431163,7.0660772,141.53,141.5,11.11201118]
[1768507431659,6.95606737,141.53,141.5,11.11201118]
[1768507431865,8.31905465,141.53,141.5,11.11201118]
[1768507432066,6.95606737,141.53,141.5,11.11201118]
[1768507432259,7.06514059,141.54,141.5,11.11201118]
[1768507432661,8.42812787,141.54,141.5,11.11201118]
[1768507432853,19.54013905,141.54,141.5,11.11201118]
[1768507433058,19.54013905,141.54,141.5,12.51052775]
[1768507433366,8.42884241,141.53,141.5,1.39851657]
[1768507434360,7.06585513,141.53,141.5,5.591578]
[1768507436170,7.06585513,141.53,141.5,1.39851657]
[1768507436865,1.36298728,141.55,141.52,1.39851657]
[1768507437066,1.36298728,141.55,141.51,5.591578]
[1768507437277,5.55604871,141.54,141.51,1.39851657]
[1768507437471,1.36298728,141.53,141.49,12.85902071]
[1768507437845,1.25298192,141.53,141.49,12.85902071]
[1768507438045,4.19306143,141.55,141.5,12.65867567]
[1768507438245,4.19306143,141.55,141.51,1.39851657]
[1768507438969,11.25816552,141.55,141.51,1.39851657]
[1768507439968,12.6211528,141.55,141.51,1.39851657]
[1768507440170,26.08399306,141.58,141.53,5.591578]
[1768507440377,26.08399306,141.58,141.54,5.591578]
[1768507440543,1.36298728,141.57,141.54,5.591578]
[1768507440749,1.36298728,141.58,141.55,4.19306143]
[1768507440973,7.06286958,141.59,141.55,5.591578]
[1768507441371,8.42585686,141.59,141.55,5.591578]
[1768507442455,8.42585686,141.59,141.56,4.19306143]
[1768507442777,1.36298728,141.59,141.56,5.591578]
[1768507443073,1.36298728,141.59,141.55,7.06451085]
[1768507443074,1.36298728,141.59,141.55,4.19306143]
[1768507443267,1.36298728,141.59,141.55,5.591578]
[1768507443462,7.06133634,141.62,141.59,1.39851657]
[1768507443790,8.42378791,141.63,141.59,5.591578]
[1768507443954,1.36298728,141.63,141.6,4.19306143]
[1768507444157,8.46328931,141.64,141.6,1.39851657]
[1768507444358,8.46328931,141.64,141.55,24.72619311]
[1768507444359,1.36298728,141.63,141.59,5.591578]
[1768507444675,8.42393504,141.63,141.59,5.591578]
[1768507445058,1.36298728,141.61,141.57,1.39851657]
[1768507445261,1.36298728,141.6,141.56,1.39851657]
[1768507445762,1.36298728,141.6,141.54,8.46347715]
[1768507445763,1.36298728,141.59,141.54,8.46347715]
[1768507445965,1.36298728,141.59,141.55,5.591578]
[1768507446481,8.4260441,141.59,141.55,5.591578]
[1768507447259,8.4260441,141.59,141.56,4.19306143]
[1768507447897,1.36298728,141.58,141.54,1.39851657]
[1768507448072,1.36298728,141.58,141.54,5.591578]
[1768507448786,8.4266307,141.57,141.54,5.591578]
[1768507449478,8.4266307,141.57,141.54,1.39851657]
[1768507449685,8.4266307,141.57,141.53,12.657175]
[1768507449987,7.06326002,141.58,141.55,1.39851657]
[1768507450684,5.38408856,141.64,141.57,5.591578]
[1768507450685,7.06114955,141.62,141.57,5.591578]
[1768507450867,0.04,141.64,141.6,4.19306143]
[1768507451067,0.04,141.64,141.59,4.19306143]
[1768507451458,4.23306143,141.64,141.59,4.19306143]
[1768507451983,7.06114955,141.62,141.59,5.591578]
[1768507452176,7.06114955,141.62,141.59,4.19306143]
[1768507453661,7.06114955,141.62,141.6,4.19306143]
[1768507453862,7.06075324,141.63,141.6,1.39851657]
[1768507454160,8.42374052,141.63,141.6,4.19306143]
[1768507454358,1.36298728,141.62,141.55,1.39851657]
[1768507454562,1.36298728,141.62,141.58,4.19306143]
[1768507455372,8.42463546,141.61,141.58,4.19306143]
[1768507455593,1.36298728,141.6,141.57,4.19306143]
[1768507455770,1.30298727,141.6,141.56,1.39851657]
[1768507456087,1.30298727,141.6,141.55,12.65615533]
[1768507456488,1.30298727,141.6,141.56,4.19306143]
[1768507457188,1.30298727,141.6,141.56,5.591578]
[1768507457385,8.36553092,141.6,141.56,5.591578]
[1768507457591,7.06254365,141.6,141.56,4.19306143]
[1768507457784,8.42553093,141.6,141.56,4.19306143]
[1768507458084,1.36298728,141.58,141.54,5.591578]
[1768507458588,1.36298728,141.57,141.53,4.19306143]
[1768507458985,1.36298728,141.57,141.52,1.39851657]
[1768507459173,1.36298728,141.56,141.52,5.591578]
[1768507459492,8.42725603,141.56,141.52,5.591578]
[1768507461777,7.0628056,141.59,141.55,5.55210491]
[1768507462087,7.06223355,141.6,141.56,5.55210491]
[1768507462903,7.06223355,141.6,141.57,5.55210491]
[1768507463062,8.49552193,141.61,141.57,5.55210491]
[1768507464097,8.49552193,141.61,141.57,1.35904348]
[1768507464298,8.49552193,141.61,141.57,5.55210491]
[1768507465421,8.49552193,141.61,141.57,4.19306143]
[1768507465706,1.48355967,141.6,141.56,1.43912372]
[1768507465870,1.48355967,141.6,141.56,5.63218515]
[1768507466071,8.54579302,141.6,141.57,4.19306143]
[1768507466366,7.06167366,141.61,141.58,1.43912372]
[1768507467168,8.54523333,141.61,141.56,8.50305826]
[1768507467469,8.54523333,141.61,141.56,12.69611969]
[1768507468191,8.58523333,141.61,141.56,12.69611969]
[1768507468493,8.58523333,141.61,141.57,4.19306143]
[1768507469279,8.58523333,141.61,141.57,2.6804599]
[1768507469504,8.58523333,141.61,141.56,11.18351816]
[1768507470596,8.58523333,141.61,141.56,8.50305826]
[1768507470795,8.58523333,141.61,141.57,4.11958362]
[1768507472513,8.58523333,141.61,141.57,1.43912372]
[1768507472815,8.58523333,141.61,141.57,4.11958362]
[1768507474106,2.7804599,141.68,141.61,1.43912372]
[1768507474107,1.48355967,141.65,141.61,1.43912372]
[1768507474419,1.48355967,141.67,141.63,2.6804599]
[1768507474909,7.05922752,141.66,141.57,24.7227423]
[1768507475206,8.54278719,141.66,141.62,2.6804599]
[1768507475404,8.54278719,141.66,141.61,2.6804599]
[1768507476110,1.48355967,141.65,141.61,7.06160274]
[1768507476295,1.48355967,141.65,141.61,11.18118636]
[1768507476933,1.48355967,141.65,141.62,2.6804599]
[1768507477096,8.54333534,141.65,141.61,11.18118636]
[1768507477608,8.54333534,141.65,141.62,2.6804599]
[1768507478094,8.54271539,141.66,141.62,4.11958362]
[1768507480024,1.48355967,141.65,141.61,2.6804599]
[1768507480209,1.48355967,141.65,141.61,1.43912372]
[1768507480518,27.38750493,141.66,141.54,63.05603461]
[1768507480519,7.05880684,141.67,141.63,1.43912372]
[1768507480819,8.64179317,141.68,141.64,4.11958362]
[1768507481220,8.64179317,141.68,141.65,1.43912372]
[1768507481415,0.1,141.68,141.66,2.6804599]
[1768507483321,0.1,141.68,141.65,1.43912372]
[1768507483507,0.1,141.68,141.65,4.11958362]
[1768507484416,7.15827039,141.68,141.65,1.43912372]
[1768507488419,7.15827039,141.68,141.65,4.11958362]
[1768507489520,0.1,141.68,141.65,4.11958362]
[1768507491125,5.63780137,141.68,141.66,1.43687871]
[1768507491425,1.40773598,141.67,141.62,0.22934792]
[1768507491613,1.40773598,141.67,141.62,9.97092256]
[1768507492416,1.40773598,141.66,141.62,9.97092256]
[1768507492624,1.40773598,141.67,141.63,2.6804599]
[1768507492833,1.40773598,141.68,141.64,2.6804599]
[1768507493021,7.05766109,141.69,141.65,2.91218555]
[1768507493211,8.46539707,141.69,141.65,2.91218555]
[1768507494105,8.46539707,141.69,141.66,2.6804599]
[1768507494305,8.46539707,141.69,141.65,0.23172565]
[1768507494501,8.46539707,141.69,141.65,2.6804599]
[1768507494914,8.46496739,141.7,141.66,2.6804599]
[1768507495101,8.46496739,141.7,141.66,2.91450897]
[1768507495322,1.40773598,141.71,141.67,2.91450897]
[1768507495533,1.40773598,141.73,141.69,2.6804599]
[1768507495708,8.46340521,141.73,141.7,2.6804599]
[1768507496127,1.40773598,141.75,141.7,2.6504599]
[1768507496315,1.40773598,141.75,141.71,2.6804599]
[1768507497741,7.05438358,141.76,141.71,7.29702086]
[1768507497742,8.46211956,141.76,141.71,7.29702086]
[1768507498043,8.46211956,141.76,141.72,2.6804599]
[1768507498430,1.40773598,141.75,141.71,0.2406059]
[1768507498743,1.40773598,141.75,141.71,2.9210658]
[1768507499218,1.40773598,141.75,141.69,7.30072615]
[1768507499426,1.40773598,141.75,141.7,2.6804599]
[1768507499613,8.46290742,141.74,141.7,2.6804599]
[1768507499813,8.46290742,141.74,141.7,9.70759568]
[1768507500012,8.46290742,141.74,141.71,2.6804599]
[1768507500212,8.46248279,141.75,141.7,7.3030331]
[1768507500417,7.05422195,141.76,141.72,0.24589732]
[1768507500647,8.46195793,141.76,141.73,2.6804599]
[1768507500853,7.05422195,141.76,141.73,2.6804599]
[1768507501059,7.0535251,141.78,141.75,2.6804599]
[1768507501355,8.46126108,141.78,141.7,24.70004333]
[1768507501512,8.46126108,141.78,141.74,2.6804599]
[1768507501712,1.40773598,141.76,141.71,2.6804599]
[1768507501920,1.40773598,141.76,141.71,9.73672145]
[1768507502140,1.40773598,141.77,141.73,2.6804599]
[1768507502529,1.40773598,141.77,141.74,2.6804599]
[1768507504147,8.46055678,141.79,141.75,2.6804599]
[1768507505240,8.46055678,141.79,141.74,7.05512129]
[1768507505454,0.1,141.8,141.75,7.0542609]
[1768507505755,1.50773598,141.8,141.75,9.7347208]
[1768507506616,8.55996841,141.8,141.75,9.7347208]
[1768507506839,8.55996841,141.8,141.76,2.6804599]
[1768507507039,8.55996841,141.8,141.75,2.6804599]
[1768507507347,1.40773598,141.78,141.73,2.6804599]
[1768507507546,1.40773598,141.78,141.7,24.70007057]
[1768507507547,1.40773598,141.76,141.7,7.07865056]
[1768507507743,1.40773598,141.76,141.71,2.6804599]
[1768507508148,1.40773598,141.76,141.7,7.07865056]
[1768507508344,1.40773598,141.76,141.71,2.6804599]
[1768507508652,1.40773598,141.76,141.7,7.05716302]
[1768507508850,1.40773598,141.74,141.69,17.66793119]
[1768507509060,1.40773598,141.74,141.69,2.6804599]
[1768507509239,1.40773598,141.74,141.68,7.08250703]
[1768507509445,1.40773598,141.74,141.69,2.6804599]
[1768507510256,1.40773598,141.72,141.66,0.0271752]
[1768507510479,1.40773598,141.71,141.66,9.76662471]
[1768507510860,8.46463923,141.71,141.66,9.76662471]
[1768507511456,1.40773598,141.7,141.65,7.05961903]
[1768507511658,1.40773598,141.69,141.64,2.71043002]
[1768507511855,1.40773598,141.69,141.65,2.6804599]
[1768507512254,1.40773598,141.7,141.64,0.02997012]
[1768507512448,1.40773598,141.7,141.65,9.73975332]
[1768507512652,1.40773598,141.7,141.66,2.6804599]
[1768507513458,8.46508566,141.7,141.64,0.02997012]
[1768507513657,8.46508566,141.7,141.65,2.6804599]
[1768507514166,8.46508566,141.7,141.65,2.71862366]
[1768507514462,8.46508566,141.7,141.65,9.77803609]
[1768507517466,8.46556472,141.69,141.65,9.77803609]
[1768507518540,8.46556472,141.69,141.65,0.03816376]
[1768507519243,8.46556472,141.69,141.65,2.71862366]
[1768507519464,1.40773598,141.68,141.64,2.6804599]
[1768507519662,1.40773598,141.67,141.62,9.79281374]
[1768507520450,8.46650763,141.67,141.62,9.79281374]
[1768507521272,1.42672173,141.66,141.62,9.74160945]
[1768507521564,1.36672173,141.66,141.62,9.74160945]
[1768507521740,7.05877165,141.67,141.62,9.86271718]
[1768507521938,7.0583324,141.68,141.62,9.86271718]
[1768507522872,7.0583324,141.68,141.63,2.6804599]
[1768507523368,1.42672173,141.67,141.63,2.6804599]
[1768507523743,7.0583324,141.68,141.64,0.12589046]
[1768507523964,7.0583324,141.68,141.65,2.6804599]
[1768507524670,7.0583324,141.68,141.64,2.80635036]
[1768507525499,7.0583324,141.68,141.64,9.86642411]
[1768507525668,1.42672173,141.69,141.66,2.6804599]
[1768507526653,8.48942694,141.71,141.67,2.6804599]
[1768507526951,1.43236253,141.73,141.69,2.6804599]
[1768507527151,1.43236253,141.73,141.7,2.6804599]
[1768507527356,1.43236253,141.75,141.72,2.6804599]
[1768507527855,8.48707629,141.75,141.71,2.6804599]
[1768507528053,8.48707629,141.75,141.71,7.05643238]
[1768507528279,8.48707629,141.75,141.71,9.73689228]
[1768507528657,1.43236253,141.75,141.72,7.05610097]
[1768507528855,1.43236253,141.75,141.72,9.73656087]
[1768507529048,1.43236253,141.77,141.73,2.6804599]
[1768507529357,8.58470723,141.8,141.76,2.6804599]
[1768507529558,1.53236253,141.8,141.77,2.6804599]
[1768507529781,0.1,141.8,141.78,2.6804599]
[1768507530163,1.43236253,141.82,141.79,2.6804599]
[1768507530490,1.43236253,141.82,141.75,2.6804599]
[1768507530491,1.43236253,141.81,141.78,2.6804599]
[1768507530660,1.43236253,141.81,141.76,2.6804599]
[1768507530979,1.43236253,141.8,141.75,2.6804599]
[1768507531284,1.43236253,141.8,141.77,2.6804599]
[1768507531585,1.43236253,141.8,141.75,7.05436121]
[1768507531890,1.43236253,141.79,141.75,4.17639478]
[1768507532060,1.43236253,141.79,141.74,4.17639478]
[1768507532755,1.43236253,141.79,141.75,4.17639478]
[1768507533020,1.43236253,141.79,141.74,4.17639478]
[1768507533375,1.43236253,141.78,141.75,4.17639478]
[1768507533678,7.05316121,141.79,141.74,4.17639478]
[1768507533679,8.48552374,141.79,141.74,4.17639478]
[1768507533863,1.43236253,141.81,141.77,4.17639478]
[1768507534063,1.43236253,141.81,141.78,4.17639478]
[1768507534286,8.48423955,141.81,141.78,4.17639478]
[1768507535173,7.05187702,141.81,141.78,4.17639478]
[1768507535482,1.43236253,141.8,141.78,4.17639478]
[1768507535988,1.43236253,141.8,141.78,11.22942697]
[1768507536294,1.43236253,141.82,141.79,4.17639478]
[1768507536478,1.43236253,141.82,141.79,4.1463948]
[1768507537474,7.05129631,141.82,141.77,7.05349347]
[1768507537785,1.43236253,141.81,141.77,4.17639478]
[1768507537967,1.43236253,141.81,141.78,4.17639478]
[1768507539395,1.43236253,141.81,141.79,4.17639478]
[1768507540097,8.48419548,141.81,141.76,7.21380686]
[1768507540394,1.43236253,141.81,141.78,4.17639478]
[1768507542080,1.43236253,141.81,141.78,4.14639479]
[1768507542485,1.43236253,141.8,141.78,4.14639479]
[1768507544800,1.43236253,141.8,141.78,4.17639478]
[1768507546178,1.43236253,141.81,141.78,4.17639478]
[1768507547296,1.43236253,141.81,141.73,17.63864788]
[1768507547502,1.43236253,141.8,141.74,7.22958806]
[1768507547705,5.60875731,141.8,141.75,4.17639478]
[1768507547906,1.43236253,141.79,141.73,7.05547749]
[1768507548090,1.43236253,141.79,141.75,4.17639478]
[1768507548293,1.43236253,141.77,141.75,4.17639478]
[1768507548488,1.43236253,141.77,141.73,7.05547749]
[1768507548688,1.43236253,141.77,141.74,4.17639478]
[1768507550407,1.43236253,141.76,141.74,4.17639478]
[1768507550708,1.43236253,141.76,141.72,4.17639478]
[1768507551891,1.43236253,141.76,141.73,4.17639478]
[1768507552605,1.52357738,141.75,141.73,4.17639478]
[1768507552904,1.52357738,141.75,141.73,4.14639479]
[1768507554304,7.05460431,141.76,141.73,4.14639479]
[1768507554613,1.52357738,141.75,141.71,7.24454876]
[1768507554908,1.52357738,141.75,141.73,4.17639478]
[1768507555625,8.57744319,141.77,141.72,0.19107318]
[1768507555907,8.57744319,141.77,141.74,4.17639478]
[1768507556906,8.57744319,141.77,141.72,0.19107318]
[1768507556907,1.52357738,141.76,141.72,0.19107318]
[1768507557324,1.52357738,141.76,141.73,4.17639478]
[1768507558707,8.57789254,141.76,141.73,4.17639478]
[1768507559104,8.57789254,141.76,141.72,7.05599991]
[1768507559404,8.57789254,141.76,141.73,4.17639478]
[1768507560312,1.52357738,141.76,141.72,11.42957216]
[1768507560489,1.52357738,141.76,141.72,7.05599991]
[1768507560804,1.52357738,141.76,141.7,17.84071194]
[1768507561010,1.52357738,141.76,141.72,4.17639478]
[1768507562313,7.05467372,141.75,141.72,4.17639478]
[1768507562522,8.5782511,141.75,141.72,4.17639478]
[1768507562990,8.5782511,141.75,141.71,4.37505476]
[1768507563196,1.52357738,141.75,141.73,4.17639478]
[1768507563418,56.42425238,141.87,141.75,0.2015741]
[1768507563419,1.62357738,141.83,141.75,0.2015741]
[1768507563632,1.62357738,141.83,141.8,4.17639478]
[1768507563918,1.52357738,141.82,141.8,4.17639478]
[1768507564222,1.52357738,141.82,141.78,4.17639478]
[1768507564392,8.57526625,141.81,141.78,4.17639478]
[1768507566098,1.52357738,141.81,141.78,11.2294481]
[1768507566298,1.52357738,141.81,141.79,4.17639478]
[1768507566893,1.52357738,141.81,141.79,11.22882113]
[1768507567087,1.52357738,141.82,141.8,4.17639478]
[1768507567492,1.52357738,141.82,141.76,7.26108405]
[1768507567715,1.52357738,141.82,141.77,4.17639478]
[1768507568109,1.52357738,141.82,141.77,7.05355082]
[1768507568417,1.52357738,141.82,141.77,11.2299456]
[1768507569611,8.57526625,141.81,141.77,4.17639478]
[1768507570200,1.52357738,141.8,141.77,4.17639478]
[1768507570826,1.52357738,141.8,141.75,7.05452775]
[1768507571024,1.52357738,141.8,141.75,11.23092253]
[1768507571499,1.52357738,141.8,141.76,4.17639478]
[1768507571821,1.52357738,141.79,141.76,4.17639478]
[1768507573916,1.52357738,141.79,141.75,11.23092253]
[1768507574121,7.05230646,141.8,141.73,36.63861073]
[1768507574122,1.52357738,141.77,141.73,11.23190087]
[1768507574805,8.57675836,141.78,141.75,4.17639478]
[1768507575207,1.52357738,141.78,141.75,4.17639478]
[1768507576227,8.5767718,141.78,141.74,11.44927062]
[1768507577102,8.5767718,141.78,141.74,7.27287584]
[1768507577301,8.5767718,141.78,141.75,4.17639478]
[1768507578040,1.52357738,141.78,141.75,4.17639478]
[1768507578727,8.57685271,141.78,141.75,4.17639478]
[1768507580123,8.57685271,141.78,141.74,11.44927062]
[1768507580331,8.57685271,141.78,141.74,0.21771312]
[1768507580534,8.57685271,141.78,141.74,4.17639478]
[1768507580535,1.52357738,141.77,141.74,4.17639478]
[1768507581231,1.53566249,141.76,141.71,4.17639478]
[1768507581842,1.53566249,141.76,141.71,11.23287803]
[1768507582142,1.53566249,141.75,141.71,11.23287803]
[1768507582434,1.53566249,141.75,141.72,4.17639478]
[1768507582737,1.53566249,141.75,141.71,7.05648325]
[1768507582929,1.53566249,141.75,141.71,11.46130896]
[1768507583339,1.53566249,141.75,141.71,4.17639478]
[1768507583534,1.53566249,141.75,141.7,4.17639478]
[1768507583743,1.53566249,141.74,141.67,0.22955446]
[1768507584038,1.53566249,141.72,141.67,11.23476125]
[1768507584221,1.53566249,141.7,141.65,7.05926163]
[1768507584536,1.53566249,141.7,141.64,11.23626664]
[1768507584728,1.53566249,141.7,141.65,11.23561065]
[1768507585733,1.53566249,141.7,141.64,11.46699015]
[1768507586037,1.53272895,141.68,141.63,4.37639478]
[1768507586232,8.59138639,141.67,141.63,11.43702912]
[1768507587235,1.53272895,141.69,141.65,4.17639478]
[1768507587417,1.47272895,141.69,141.64,4.41031578]
[1768507587618,1.47272895,141.69,141.64,4.17639478]
[1768507588139,7.05794127,141.69,141.64,11.23625151]
[1768507588317,7.05794127,141.69,141.64,7.3548382]
[1768507588525,7.05794127,141.69,141.64,11.53123298]
[1768507589226,7.05716302,141.7,141.64,11.53123298]
[1768507589427,1.53272895,141.69,141.64,11.53123298]
[1768507589937,1.53272895,141.69,141.65,4.17639478]
[1768507590743,1.53272895,141.69,141.64,25.00521944]
[1768507590945,1.53272895,141.69,141.64,29.18161422]
[1768507592225,1.53272895,141.69,141.65,4.17639478]
[1768507593343,1.53272895,141.69,141.65,9.73655393]
[1768507593648,1.53272895,141.68,141.65,9.73655393]
[1768507594154,1.53272895,141.68,141.65,7.05929312]
[1768507594320,1.53272895,141.68,141.64,7.06008384]
[1768507595146,1.47272895,141.68,141.64,7.06008384]
[1768507595440,7.05865744,141.67,141.63,9.93777667]
[1768507595744,9.73550776,141.68,141.63,7.26051586]
[1768507596243,7.05824695,141.68,141.63,7.26051586]
[1768507597045,1.53272895,141.67,141.63,7.26051586]
[1768507598542,7.05870851,141.67,141.63,7.26051586]
[1768507598844,1.53272895,141.66,141.63,7.26051586]
[1768507600125,1.53272895,141.65,141.63,0.2]
[1768507600442,1.47272893,141.65,141.63,0.2]
[1768507601734,1.41272888,141.65,141.63,0.2]
[1768507604147,1.53272895,141.64,141.6,7.06206728]
[1768507604535,1.47272895,141.64,141.6,7.06206728]
[1768507605152,1.47272895,141.64,141.59,0.49109528]
[1768507605153,1.47272895,141.64,141.61,7.06164407]
[1768507605447,1.47272895,141.64,141.6,7.0619593]
[1768507605650,8.53297713,141.64,141.6,7.0619593]
[1768507605851,7.06024818,141.64,141.6,7.0619593]
[1768507606143,7.05982172,141.65,141.6,7.61504206]
[1768507606448,1.53272895,141.65,141.6,7.61504206]
[1768507606829,1.53272895,141.64,141.6,7.61504206]
[1768507607240,2.67726081,141.64,141.59,7.61663121]
[1768507607446,1.53272895,141.63,141.59,7.06254719]
[1768507607828,1.53272895,141.65,141.61,0.55512322]